[Event "3rd FIDE WCCC Rapid U12 2019"]
[Site "Minsk"]
[Date "2019.08.17"]
[Round "9.3"]
[White "Hoang, Minh Hieu"]
[Black "Khubukshanov, Erdem"]
[Result "0-1"]
[ECO "D48"]
[WhiteElo "1848"]
[BlackElo "2257"]
[Annotator "ChessBase"]
[PlyCount "166"]
[EventDate "2019.08.16"]
[EventType "swiss"]
[EventCountry "BLR"]
[SourceTitle "playchess.com"]
[Source "ChessBase"]
[SourceQuality "1"]
[TimeControl "600+5"]

1. d4 {[%emt 0:00:00]} d5 {[%emt 0:00:00]} 2. c4 {[%emt 0:00:00]} e6 {[%emt 0:00:00]} 3. Nc3 {[%emt 0:00:00]} c6 {[%emt 0:00:00]} 4. e3 {[%emt 0:00:00]} Nf6 {[%emt 0:00:00]} 5. Nf3 {[%emt 0:00:00]} Nbd7 {[%emt 0:00:00]} 6. Bd3 {[%emt 0:00:02]} dxc4 {[%emt 0:00:00]} 7. Bxc4 {[%emt 0:00:02]} b5 {[%emt 0:00:00]} 8. Bd3 {[%emt 0:00:00]} a6 {[%emt 0:00:01]} 9. a4 {[%emt 0:00:20]} b4 {[%emt 0:00:13]} 10. Nb1 {[%emt 0:00:02]} c5 {[%emt 0:00:05]} 11. Nbd2 {[%emt 0:00:03]} Bb7 {[%emt 0:00:08]} 12. a5 {[%emt 0:00:03]} cxd4 {[%emt 0:00:06]} 13. exd4 {[%emt 0:00:12]} Be7 {[%emt 0:00:10]} 14. O-O {[%emt 0:00:04]} O-O {[%emt 0:00:03]} 15. Qe2 {[%emt 0:00:01]} Nd5 {[%emt 0:00:14]} 16. Nc4 {[%emt 0:00:02]} N7f6 {[%emt 0:00:48]} 17. Be3 {[%emt 0:00:01]} Nxe3 {[%emt 0:00:22]} 18. fxe3 {[%emt 0:00:03]} Ne4 {[%emt 0:00:07]} 19. Nfd2 {[%emt 0:00:11]} Nxd2 {[%emt 0:00:10]} 20. Qxd2 {[%emt 0:00:04]} Rb8 {[%emt 0:00:29]} 21. Nb6 {[%emt 0:00:09]} Bg5 {[%emt 0:00:09]} 22. Rfe1 {[%emt 0:00:22]} Qd6 {[%emt 0:01:27]} 23. Qe2 {[%emt 0:00:25]} Bd8 {[%emt 0:00:36]} 24. Nc4 {[%emt 0:00:02]} Qe7 {[%emt 0:00:01]} 25. Qc2 {[%emt 0:00:32]} g6 {[%emt 0:00:07]} 26. Be4 {[%emt 0:00:03]} b3 {[%emt 0:02:31]} 27. Qd3 {[%emt 0:00:41]} Bxe4 {[%emt 0:00:19]} 28. Qxe4 {[%emt 0:00:01]} Rb5 {[%emt 0:00:16]} 29. Rec1 {[%emt 0:00:26]} Bc7 {[%emt 0:00:43]} 30. g3 {[%emt 0:00:21]} Bb8 {[%emt 0:01:10]} 31. Rc3 {[%emt 0:00:29]} Bc7 {[%emt 0:02:07]} 32. Kg2 {[%emt 0:00:09]} Rfb8 {[%emt 0:00:03]} 33. Qc6 {[%emt 0:00:07]} Qd8 {[%emt 0:00:08]} 34. Ra3 {[%emt 0:01:09]} Bxa5 {[%emt 0:00:01]} 35. Nxa5 {[%emt 0:00:04]} Rxa5 {[%emt 0:00:01]} 36. Raxb3 {[%emt 0:00:03]} Rxb3 37. Rxb3 {[%emt 0:00:01]} Kg7 {[%emt 0:00:07]} 38. Qf3 {[%emt 0:00:18]} Rf5 {[%emt 0:00:02]} 39. Qe4 {[%emt 0:00:03]} Qa5 {[%emt 0:00:08]} 40. Rc3 {[%emt 0:01:12]} Qa1 {[%emt 0:00:01]} 41. Qd3 {[%emt 0:00:01]} Qxb2+ 42. Rc2 Qb7+ {[%emt 0:00:17]} 43. e4 {[%emt 0:00:10]} Rb5 {[%emt 0:00:11]} 44. Kh3 {[%emt 0:00:22]} Rb3 {[%emt 0:00:03]} 45. Qe2 {[%emt 0:00:18]} Qe7 {[%emt 0:00:10]} 46. Qxa6 {[%emt 0:00:20]} Qf6 {[%emt 0:00:02]} 47. Qc4 {[%emt 0:00:07]} Re3 {[%emt 0:00:02]} 48. Rd2 {[%emt 0:01:57]} Rxe4 49. Kg2 {[%emt 0:00:01]} Qg5 {[%emt 0:00:10]} 50. Rf2 {[%emt 0:00:05]} Qd5 {[%emt 0:00:08]} 51. Qxd5 {[%emt 0:00:13]} exd5 {[%emt 0:00:01]} 52. Rd2 {[%emt 0:00:00]} Kf6 {[%emt 0:00:04]} 53. Kf3 {[%emt 0:00:01]} Kf5 {[%emt 0:00:01]} 54. h3 {[%emt 0:00:03]} h5 {[%emt 0:00:02]} 55. Rd1 {[%emt 0:00:07]} f6 {[%emt 0:00:09]} 56. Rd2 {[%emt 0:00:01]} g5 {[%emt 0:00:02]} 57. Rd1 {[%emt 0:00:01]} g4+ {[%emt 0:00:08]} 58. hxg4+ {[%emt 0:00:01]} hxg4+ {[%emt 0:00:01]} 59. Kf2 {[%emt 0:00:01]} Re8 {[%emt 0:00:08]} 60. Kg2 {[%emt 0:00:16]} Re2+ {[%emt 0:00:02]} 61. Kf1 {[%emt 0:00:03]} Re3 {[%emt 0:00:05]} 62. Kf2 {[%emt 0:00:01]} Rf3+ {[%emt 0:00:01]} 63. Kg2 {[%emt 0:00:01]} Ke4 {[%emt 0:00:01]} 64. Rd2 {[%emt 0:00:06]} f5 {[%emt 0:00:06]} 65. Rd1 {[%emt 0:00:04]} Rd3 {[%emt 0:00:03]} 66. Rf1 {[%emt 0:00:01]} Rd2+ {[%emt 0:00:03]} 67. Kg1 {[%emt 0:00:03]} Rxd4 {[%emt 0:00:01]} 68. Rf4+ {[%emt 0:00:01]} Ke5 {[%emt 0:00:04]} 69. Rf2 {[%emt 0:00:00]} Rd3 {[%emt 0:00:01]} 70. Kg2 {[%emt 0:00:01]} d4 {[%emt 0:00:01]} 71. Re2+ {[%emt 0:00:04]} Re3 {[%emt 0:00:00]} 72. Ra2 {[%emt 0:00:03]} Ke4 {[%emt 0:00:01]} 73. Rf2 {[%emt 0:00:04]} d3 {[%emt 0:00:03]} 74. Rf4+ {[%emt 0:00:00]} Ke5 {[%emt 0:00:01]} 75. Rf2 {[%emt 0:00:05]} Re2 {[%emt 0:00:15]} 76. Rxe2+ {[%emt 0:00:01]} dxe2 {[%emt 0:00:01]} 77. Kf2 {[%emt 0:00:01]} Kd4 {[%emt 0:00:01]} 78. Kxe2 {[%emt 0:00:04]} Ke4 {[%emt 0:00:01]} 79. Kf2 {[%emt 0:00:16]} Kd3 {[%emt 0:00:01]} 80. Kf1 {[%emt 0:00:10]} Ke3 {[%emt 0:00:01]} 81. Kg1 {[%emt 0:00:01]} Kf3 {[%emt 0:00:01]} 82. Kh2 {[%emt 0:00:00]} Kf2 {[%emt 0:00:01]} 83. Kh1 {[%emt 0:00:02]} Kxg3 {[%emt 0:00:01]} 0-1

[Event "3rd FIDE WCCC Rapid U12 2019"]
[Site "Minsk"]
[Date "2019.08.17"]
[Round "9.4"]
[White "Tobak, Mikhail"]
[Black "Israfilov, Ali"]
[Result "0-1"]
[ECO "B40"]
[WhiteElo "1998"]
[BlackElo "1857"]
[Annotator "NA"]
[PlyCount "114"]
[EventDate "2019.08.16"]
[EventType "swiss"]
[EventCountry "BLR"]
[SourceTitle "playchess.com"]
[Source "ChessBase"]
[SourceQuality "1"]
[TimeControl "600+5"]

1. e4 {[%emt 0:00:00]} c5 {[%emt 0:00:00]} 2. Nf3 {[%emt 0:00:00]} e6 {[%emt 0:00:00]} 3. d3 {[%emt 0:00:00]} d5 {[%emt 0:00:05]} 4. Nbd2 {[%emt 0:00:01]} g6 {[%emt 0:00:05]} 5. g3 {[%emt 0:00:02]} Bg7 {[%emt 0:00:01]} 6. Bg2 {[%emt 0:00:01]} Nf6 {[%emt 0:00:02]} 7. O-O {[%emt 0:01:16]} O-O {[%emt 0:00:03]} 8. c3 {[%emt 0:00:24]} Nc6 {[%emt 0:00:05]} 9. Qc2 {[%emt 0:00:02] A08: King's Indian Attack} (9. Re1 a5 10. a4 b6 11. exd5 exd5 12. Nf1 h6 13. Bf4 Nh5 14. Ne5 Bb7 15. Nxc6 Bxc6 16. Be5 Bxe5 17. Rxe5 Qd6 {½-½ (46) Fressinet,L (2717)-Vitiugov,N (2742) Dubai 2014}) 9... a5 {[%emt 0:00:06]} 10. a4 {[%emt 0:00:00]} b6 {[%emt 0:00:15]} 11. Rd1 {[%emt 0:00:40]} Ba6 {[%emt 0:00:02]} 12. Nf1 {[%emt 0:00:13]} Rc8 {[%emt 0:00:06]} 13. Ne3 $146 {[%emt 0:00:39]} ({Predecessor:} 13. Bf4 Re8 14. Ne5 Bb7 15. Nxc6 Bxc6 16. Qb3 h6 {0-1 (56) Heydarova,A (1850)-Goltseva,E (2214) Mamaia 2017}) 13... Qe7 {[%emt 0:00:24]} 14. Bf1 {[%emt 0:00:30]} Rfd8 {[%emt 0:00:12]} 15. Re1 {[%emt 0:00:18]} d4 {[%emt 0:00:22]} 16. Nc4 {[%emt 0:00:05]} dxc3 {[%emt 0:00:08]} 17. bxc3 {[%emt 0:00:02]} Bxc4 {[%emt 0:00:05]} 18. dxc4 {[%emt 0:00:02]} Nd7 {[%emt 0:00:12]} 19. Bg5 {[%emt 0:00:11]} Bf6 {[%emt 0:00:16]} 20. Bf4 {[%emt 0:00:09]} Nde5 {[%emt 0:00:36]} 21. Nxe5 {[%emt 0:00:04]} Bxe5 {[%emt 0:00:02]} 22. Be3 {[%emt 0:00:13]} Bg7 {[%emt 0:00:19]} 23. Rab1 {[%emt 0:00:05]} Qc7 {[%emt 0:00:24]} 24. f4 {[%emt 0:00:05]} Rd7 {[%emt 0:00:53]} 25. e5 {[%emt 0:00:48]} Rcd8 {[%emt 0:00:27]} 26. Rb2 {[%emt 0:00:21]} Bh6 {[%emt 0:00:39]} 27. Qe2 {[%emt 0:00:26]} Ne7 {[%emt 0:01:12]} 28. Reb1 {[%emt 0:00:13]} Nf5 {[%emt 0:01:07]} 29. Bf2 {[%emt 0:00:44]} g5 {[%emt 0:00:05]} 30. Bh3 {[%emt 0:01:43]} gxf4 {[%emt 0:00:20]} 31. gxf4 Kh8 32. Bxf5 {[%emt 0:00:20]} exf5 {[%emt 0:00:01]} 33. Bg3 {[%emt 0:00:27]} Rg8 {[%emt 0:02:41]} 34. Kf2 {[%emt 0:00:08]} Rg6 {[%emt 0:00:03]} 35. Rd2 {[%emt 0:00:25]} Rxd2 {[%emt 0:00:14]} 36. Qxd2 {[%emt 0:00:01]} Qc6 {[%emt 0:00:01]} 37. Ra1 {[%emt 0:01:15]} (37. Rb5 $11) 37... Qe4 {[%emt 0:00:15]} 38. Rd1 {[%emt 0:00:37]} Qxc4 {[%emt 0:00:14]} 39. Bh4 {[%emt 0:00:01]} Bf8 {[%emt 0:00:48]} 40. Bf6+ {[%emt 0:00:33]} Kg8 {[%emt 0:00:04]} 41. Rg1 {[%emt 0:00:08]} Qxa4 $19 {[%emt 0:00:19]} 42. h4 {[%emt 0:00:03]} Qe4 {[%emt 0:00:06]} 43. h5 {[%emt 0:00:04]} Rxg1 {[%emt 0:00:01]} 44. Kxg1 Qf3 45. Qd8 {[%emt 0:00:13]} Qg3+ {[%emt 0:00:04]} 46. Kh1 {[%emt 0:00:03]} Qf3+ {[%emt 0:00:02]} 47. Kg1 {[%emt 0:00:01]} Qg4+ {[%emt 0:00:04]} 48. Kf2 {[%emt 0:00:04]} Qxf4+ {[%emt 0:00:01]} 49. Ke2 {[%emt 0:00:01]} Qg4+ {[%emt 0:00:04]} 50. Kd2 {[%emt 0:00:02]} Qxh5 {[%emt 0:00:07]} 51. Qd3 {[%emt 0:00:17]} Qg6 {[%emt 0:00:13]} 52. Kc2 {[%emt 0:00:07]} f4 {[%emt 0:00:05]} 53. Qxg6+ {[%emt 0:00:02]} hxg6 {[%emt 0:00:01]} 54. Kd3 {[%emt 0:00:01]} a4 {[%emt 0:00:08]} 55. c4 {[%emt 0:00:02]} Bg7 {[%emt 0:00:03]} 56. Bd8 {[%emt 0:00:03]} Bxe5 {[%emt 0:00:01]} 57. Bxb6 {[%emt 0:00:01]} a3 {[%emt 0:00:03]} 0-1

[Event "3rd FIDE WCCC Rapid U12 2019"]
[Site "Minsk"]
[Date "2019.08.17"]
[Round "9.5"]
[White "Chyndygyr, Tamerlan"]
[Black "Kopylov, Artem"]
[Result "1/2-1/2"]
[ECO "D15"]
[WhiteElo "1984"]
[BlackElo "1901"]
[Annotator "NA"]
[PlyCount "156"]
[EventDate "2019.08.16"]
[EventType "swiss"]
[EventCountry "BLR"]
[SourceTitle "playchess.com"]
[Source "ChessBase"]
[SourceQuality "1"]
[TimeControl "600+5"]

1. d4 {[%emt 0:00:00]} d5 {[%emt 0:00:00]} 2. c4 {[%emt 0:00:00]} c6 {[%emt 0:00:00]} 3. Nf3 {[%emt 0:00:00]} Nf6 {[%emt 0:00:00]} 4. Nc3 {[%emt 0:00:00]} a6 {[%emt 0:00:01]} 5. cxd5 {[%emt 0:00:02]} cxd5 {[%emt 0:00:02]} 6. Bf4 {[%emt 0:00:03]} e6 {[%emt 0:00:14]} 7. e3 {[%emt 0:00:00]} Nc6 {[%emt 0:00:03]} 8. h3 {[%emt 0:00:01]} Bd6 $11 {[%emt 0:00:06]} 9. Ne5 {[%emt 0:00:01]} O-O {[%emt 0:00:56]} 10. Bd3 {[%emt 0:00:01]} Qc7 {[%emt 0:01:27]} 11. Nxc6 {[%emt 0:00:37]} Bxf4 {[%emt 0:00:51]} 12. Nb4 {[%emt 0:00:01]} Bd6 {[%emt 0:00:05]} 13. Nc2 {[%emt 0:00:01]} b5 {[%emt 0:00:20]} 14. O-O {[%emt 0:00:04]} Bb7 {[%emt 0:00:07]} 15. Rc1 {[%emt 0:00:10]} Qe7 {[%emt 0:00:05]} 16. Qe2 {[%emt 0:00:28]} Rac8 {[%emt 0:00:19]} 17. f3 {[%emt 0:00:04]} Bb8 {[%emt 0:01:29]} 18. Na1 {[%emt 0:00:55]} e5 {[%emt 0:00:19]} 19. Nb3 {[%emt 0:00:04]} e4 {[%emt 0:01:05]} 20. Bb1 {[%emt 0:00:20]} exf3 {[%emt 0:00:06]} 21. gxf3 {[%emt 0:00:02]} Bd6 {[%emt 0:00:48]} 22. e4 {[%emt 0:00:24]} dxe4 {[%emt 0:00:06]} 23. fxe4 {[%emt 0:00:01]} b4 {[%emt 0:00:26]} 24. e5 {[%emt 0:00:06]} bxc3 25. Qd3 {[%emt 0:00:05]} Ne4 {[%emt 0:00:08]} 26. exd6 {[%emt 0:00:29]} Qg5+ {[%emt 0:00:02]} 27. Kh2 {[%emt 0:00:03]} g6 {[%emt 0:00:35]} 28. bxc3 {[%emt 0:00:36]} Nxd6 {[%emt 0:00:06]} 29. Qg3 {[%emt 0:00:11]} Qd5 {[%emt 0:00:25]} 30. Nc5 {[%emt 0:00:28]} Bc6 {[%emt 0:00:32]} 31. Rce1 {[%emt 0:00:09]} Rfe8 {[%emt 0:00:05]} 32. Nxa6 {[%emt 0:00:30]} Bb5 {[%emt 0:00:11]} 33. Nb4 {[%emt 0:00:07]} Qh5 {[%emt 0:00:34]} 34. Rg1 {[%emt 0:01:05]} Nc4 {[%emt 0:00:28]} 35. Bd3 {[%emt 0:00:07]} Nd2 {[%emt 0:00:29]} 36. Rxe8+ {[%emt 0:01:45]} Rxe8 {[%emt 0:00:02]} 37. Bxb5 {[%emt 0:01:27]} Qxb5 {[%emt 0:00:09]} 38. Qf4 {[%emt 0:00:07]} Qe2+ {[%emt 0:00:09]} 39. Kh1 {[%emt 0:00:08]} Nf3 {[%emt 0:00:01]} 40. Nd5 {[%emt 0:00:12]} Nxg1 {[%emt 0:00:18]} 41. Nf6+ {[%emt 0:00:03]} Kg7 {[%emt 0:00:04]} 42. Nxe8+ {[%emt 0:00:02]} Qxe8 {[%emt 0:00:01]} 43. Kxg1 {[%emt 0:00:01]} Qe1+ {[%emt 0:00:01]} 44. Kg2 {[%emt 0:00:02]} Qxc3 {[%emt 0:00:04]} 45. Qe5+ {[%emt 0:00:01]} Kg8 {[%emt 0:00:02]} 46. Qe8+ {[%emt 0:00:08]} Kg7 {[%emt 0:00:01]} 47. Qd7 {[%emt 0:00:03]} Qd2+ {[%emt 0:00:03]} 48. Kg3 {[%emt 0:00:01]} Qxa2 {[%emt 0:00:02]} 49. d5 {[%emt 0:00:00]} Qb3+ {[%emt 0:00:03]} 50. Kf4 {[%emt 0:00:02]} Qc4+ {[%emt 0:00:04]} 51. Ke5 {[%emt 0:00:02]} Qe2+ {[%emt 0:00:17]} 52. Kd6 {[%emt 0:00:02]} Qh2+ {[%emt 0:00:01]} 53. Ke7 {[%emt 0:00:02]} Qe5+ {[%emt 0:00:04]} 54. Kd8 {[%emt 0:00:02]} Qb8+ {[%emt 0:00:02]} 55. Qc8 {[%emt 0:00:06]} Qd6+ {[%emt 0:00:10]} 56. Qd7 {[%emt 0:00:01]} Qb8+ {[%emt 0:00:07]} 57. Ke7 {[%emt 0:00:01]} Qe5+ {[%emt 0:00:01]} 58. Kd8 {[%emt 0:00:02]} Qb8+ {[%emt 0:00:01]} 59. Qc8 {[%emt 0:00:01]} Qd6+ {[%emt 0:00:07]} 60. Qd7 {[%emt 0:00:02]} Qb8+ {[%emt 0:00:10]} 61. Ke7 {[%emt 0:00:02]} Qe5+ {[%emt 0:00:01]} 62. Kd8 {[%emt 0:00:24]} Qb8+ {[%emt 0:00:04]} 63. Qc8 {[%emt 0:00:01]} Qd6+ {[%emt 0:00:02]} 64. Qd7 {[%emt 0:00:10]} Qb8+ {[%emt 0:00:12]} 65. Ke7 {[%emt 0:00:04]} Qe5+ {[%emt 0:00:02]} 66. Kd8 {[%emt 0:00:02]} Qb8+ {[%emt 0:00:01]} 67. Qc8 {[%emt 0:00:01]} Qd6+ {[%emt 0:00:00]} 68. Qd7 {[%emt 0:00:01]} Qxd7+ {[%emt 0:00:21]} 69. Kxd7 {[%emt 0:00:03]} f5 {[%emt 0:00:01]} 70. Ke8 {[%emt 0:01:28]} f4 {[%emt 0:00:02]} 71. d6 {[%emt 0:00:01]} f3 {[%emt 0:00:01]} 72. d7 {[%emt 0:00:01]} f2 {[%emt 0:00:01]} 73. d8=Q {[%emt 0:00:02]} f1=Q {[%emt 0:00:01]} 74. Qe7+ {[%emt 0:00:03]} Kh6 {[%emt 0:00:07]} 75. Qh4+ {[%emt 0:00:04]} Kg7 {[%emt 0:00:01]} 76. Qe7+ {[%emt 0:00:11]} Kh6 {[%emt 0:00:01]} 77. Qh4+ {[%emt 0:00:42]} Kg7 {[%emt 0:00:02]} 78. Qe7+ {[%emt 0:00:23]} Kh6 {[%emt 0:00:01]} 1/2-1/2

[Event "3rd FIDE WCCC Rapid U12 2019"]
[Site "Minsk"]
[Date "2019.08.17"]
[Round "9.6"]
[White "Abdullayev, Ayat"]
[Black "Mokhtari Moghadam, Taha"]
[Result "0-1"]
[ECO "B13"]
[WhiteElo "1537"]
[BlackElo "1745"]
[Annotator "NA"]
[PlyCount "80"]
[EventDate "2019.08.16"]
[EventType "swiss"]
[EventCountry "BLR"]
[SourceTitle "playchess.com"]
[Source "ChessBase"]
[SourceQuality "1"]
[TimeControl "600+5"]

1. e4 {[%emt 0:00:00]} c6 {[%emt 0:00:00]} 2. d4 {[%emt 0:00:00]} d5 {[%emt 0:00:00]} 3. exd5 {[%emt 0:00:00]} cxd5 {[%emt 0:00:00]} 4. Bd3 {[%emt 0:00:00]} Nc6 {[%emt 0:00:00]} 5. c3 {[%emt 0:00:00]} Nf6 {[%emt 0:00:01]} 6. Bf4 {[%emt 0:00:02]} Bg4 {[%emt 0:00:06]} 7. Qb3 {[%emt 0:00:02]} Qd7 {[%emt 0:00:04]} 8. Nd2 {[%emt 0:00:01]} e6 {[%emt 0:00:01]} 9. Ngf3 {[%emt 0:00:01]} Bd6 {[%emt 0:00:02]} 10. Bxd6 {[%emt 0:00:33]} Qxd6 {[%emt 0:00:02]} 11. O-O {[%emt 0:01:06]} O-O {[%emt 0:00:03]} 12. Rae1 {[%emt 0:00:13]} Nd7 {[%emt 0:00:29]} 13. Qd1 {[%emt 0:00:52]} h6 {[%emt 0:00:16]} 14. h3 {[%emt 0:00:34]} Bxf3 {[%emt 0:00:23]} 15. Nxf3 {[%emt 0:00:04]} Rab8 {[%emt 0:00:19]} 16. Qe2 {[%emt 0:00:18]} Rfd8 {[%emt 0:02:24]} 17. Ne5 {[%emt 0:00:13]} Ncxe5 {[%emt 0:00:25]} 18. dxe5 {[%emt 0:00:05]} Qe7 {[%emt 0:00:02]} 19. Bb1 {[%emt 0:00:25]} b5 {[%emt 0:00:24]} 20. Qd3 {[%emt 0:00:24]} Nf8 {[%emt 0:00:02]} 21. f4 {[%emt 0:01:17]} g6 {[%emt 0:01:19]} 22. g4 {[%emt 0:00:40]} Qc5+ {[%emt 0:00:06]} 23. Kh1 {[%emt 0:00:11]} d4 {[%emt 0:00:27]} 24. cxd4 {[%emt 0:00:20]} Qxd4 {[%emt 0:00:03]} 25. Qg3 {[%emt 0:00:40]} Rbc8 {[%emt 0:02:06]} 26. f5 {[%emt 0:00:27]} Qxb2 {[%emt 0:00:10]} 27. Qh4 {[%emt 0:00:37]} Rd2 {[%emt 0:00:26]} 28. Qg3 {[%emt 0:00:59]} Rc3 {[%emt 0:00:22]} 29. Rf3 {[%emt 0:00:06]} Rc1 {[%emt 0:00:59]} 30. Rff1 {[%emt 0:00:42]} Rc3 {[%emt 0:00:03]} 31. Rf3 {[%emt 0:00:01]} Rxf3 {[%emt 0:00:01]} 32. Qxf3 {[%emt 0:00:02]} Rf2 {[%emt 0:00:04]} 33. Qg3 {[%emt 0:00:11]} Qd2 {[%emt 0:00:11]} 34. Rg1 {[%emt 0:00:12]} Qd5+ {[%emt 0:00:05]} 35. Rg2 {[%emt 0:00:08]} Rf1+ {[%emt 0:00:02]} 36. Kh2 {[%emt 0:00:02]} Rxb1 {[%emt 0:00:02]} 37. f6 {[%emt 0:00:34]} Qd1 {[%emt 0:00:38]} 38. Rg1 {[%emt 0:00:07]} Qxg1+ {[%emt 0:00:02]} 39. Qxg1 {[%emt 0:00:02]} Rxg1 {[%emt 0:00:00]} 40. Kxg1 {[%emt 0:00:02]} Nd7 {[%emt 0:00:01]} 0-1